fUST/lending_fUST_20250325
["ID","MTS","AMOUNT","RATE_DAILY","PERIOD"]
[356616361,1742832632118,-166.3986652,0.00012399,2]
[356616363,1742832632128,-2072.07176582,0.0001242,2]
[356616366,1742832632138,-166.39866519,0.0001246,2]
[356616367,1742832632148,-500.0,0.00012473,2]
[356616370,1742832632158,-500.0,0.00012473,2]
[356616371,1742832632167,-500.0,0.00012473,2]
[356616373,1742832632178,-500.0,0.00012473,2]
[356616375,1742832632196,-500.0,0.00012473,2]
[356616378,1742832632206,-600.0,0.00012491,2]
[356616379,1742832632333,-300.0,0.00012495,2]
[356616380,1742832632397,-500.0,0.00012496,2]
[356616381,1742832632408,-500.0,0.00012496,2]
[356616382,1742832632418,-469.90965276,0.00012496,2]
[356616383,1742832632427,-497.65000921,0.00012496,2]
[356616384,1742832632437,-84466.50635845,0.00012497,2]
[356616385,1742832632453,-12517.25302464,0.00012497,2]
[356616386,1742832632463,-5000.0,0.00012499,2]
[356616387,1742832632473,-11865.34268049,0.00012499,2]
[356616396,1742832637991,-10451.50000005,0.00012499,2]
[356616397,1742832638004,-22085.89572562,0.00012499,2]
[356616407,1742832640357,-0.00972376,0.00012499,2]
[356616408,1742832640368,-221544.08399366,0.00012499,2]
[356616416,1742832643288,-302.0,0.00012499,2]
[356616417,1742832643345,-4297.7195645,0.00012499,2]
[356616424,1742832646198,-927.04743788,0.00012499,2]
[356616430,1742832927534,9099.17025014,0.00011,2]
[356616433,1742833786643,-186.31569258,0.00012049,2]
[356616434,1742833803166,-150.0,0.00012048,2]
[356616455,1742833832444,-150.0,0.00012048,2]
[356616456,1742833832455,-24713.68430742,0.00012049,2]
[356616457,1742833832466,-229.0,0.00012377,10]
[356616458,1742833832477,-5000.0,0.00012397,2]
[356616459,1742833832488,-500.0,0.00012498,2]
[356616460,1742833832497,-397.85749361,0.00012498,2]
[356616499,1742833838164,-184.90640439,0.00012498,2]
[356616501,1742833838175,-380.0,0.00012499,2]
[356616503,1742833838185,-2548.5926531,0.000125,2]
[356616506,1742833838195,-151.0,0.00012698,2]
[356616508,1742833838205,-172.181331,0.00012876,3]
[356616510,1742833838215,-5779.81961151,0.000129,2]
[356616573,1742833846380,-293.35799642,0.00012498,2]
[356616574,1742833846390,-570.53208884,0.000129,2]
[356616575,1742833846400,-420.0,0.00013225,2]
[356616576,1742833846410,-1342.72590093,0.00013274,2]
[356616577,1742833846420,-172.181331,0.00013424,2]
[356616578,1742833846432,-1381.38117722,0.00013499,2]
[356616579,1742833846442,-326.47565164,0.00013499,2]
[356616580,1742833846451,-500.0,0.00013573,2]
[356616581,1742833846461,-500.0,0.00013573,2]
[356616582,1742833846471,-500.0,0.00013573,2]
[356616583,1742833846481,-500.0,0.00013573,2]
[356616584,1742833846490,-500.0,0.00013573,2]
[356616585,1742833846499,-506.01590176,0.00013573,2]
[356616586,1742833846509,-500.0,0.00013573,2]
[356616587,1742833846521,-500.0,0.00013573,2]
[356616589,1742833846530,-500.0,0.00013573,2]
[356616590,1742833846540,-477.14616757,0.00013573,2]
[356616592,1742833846549,-83132.01348418,0.00013599,2]
[356616593,1742833846560,-12839.76545184,0.00013599,2]
[356616598,1742834094509,1914.84530653,0.00014,30]
[356616599,1742834094533,8085.15469347,0.00014,30]
[356616600,1742834147551,260.2,0.00014,30]
[356616643,1742835038262,-1078.09412299,0.00012178,2]
[356616644,1742835038316,-116.76012281,0.00012178,2]
[356616645,1742835038325,-310.59703071,0.00012278,2]
[356616646,1742835038335,-227.25046255,0.000128,2]
[356616647,1742835038344,-150.0,0.00013302,2]
[356616648,1742835038354,-1691.39238393,0.00013311,2]
[356616649,1742835038365,-1524.02530357,0.00013311,2]
[356616650,1742835038375,-4097.86290796,0.00013472,2]
[356616651,1742835038384,-38.96113846,0.00013472,2]
[356616652,1742835038395,-261.03886154,0.00013472,2]
[356616653,1742835038405,-662.216,0.00013473,2]
[356616654,1742835038415,-500.0,0.00013473,2]
[356616655,1742835038425,-500.0,0.00013473,2]
[356616656,1742835038434,-500.0,0.00013473,2]
[356616657,1742835038443,-500.0,0.00013473,2]
[356616658,1742835038453,-500.0,0.00013473,2]
[356616659,1742835038463,-500.0,0.00013473,2]
[356616660,1742835038473,-368.15464723,0.00013473,2]
[356616661,1742835038482,-500.0,0.00013473,2]
[356616662,1742835038491,-500.0,0.00013473,2]
[356616663,1742835038501,-1468.30633853,0.00013473,2]
[356616664,1742835038510,-1381.38117721,0.00013473,2]
[356616665,1742835038520,-302.0,0.00013491,2]
[356616666,1742835038529,-600.0,0.00013491,2]
[356616667,1742835038539,-180.18521619,0.00013498,2]
[356616668,1742835038551,-463.28532609,0.00013498,2]
[356616669,1742835038560,-500.0,0.00013498,2]
[356616670,1742835038570,-4603.41483579,0.00013499,2]
[356616690,1742835788860,183.84304313,0.0001202,2]
[356616772,1742836235665,206.6319914,0.0001193,2]
[356616788,1742836238652,-736.0643405,0.0001222,2]
[356616789,1742836238662,-170.02183702,0.00012486,2]
[356616790,1742836238671,-363.24008576,0.00012487,2]
[356616791,1742836238681,-430.47751359,0.00012487,2]
[356616792,1742836238690,-300.0,0.00012487,2]
[356616793,1742836238699,-2868.01883012,0.00012488,2]
[356616808,1742836241006,-1041.44652036,0.00012488,2]
[356616809,1742836241018,-3910.92031945,0.00012488,2]
[356616810,1742836241110,-17079.61433007,0.00012488,2]
[356616811,1742836241119,-156.31763884,0.00013372,2]
[356616812,1742836241128,-500.0,0.00013373,2]
[356616813,1742836241138,-500.0,0.00013373,2]
[356616814,1742836241147,-267.75061735,0.00013373,2]
[356616815,1742836241156,-500.0,0.00013373,2]
[356616816,1742836241165,-540.11630387,0.00013373,2]
[356616817,1742836241174,-500.0,0.00013373,2]
[356616818,1742836241184,-500.0,0.00013373,2]
[356616819,1742836241194,-500.0,0.00013373,2]
[356616820,1742836241203,-500.0,0.00013373,2]
[356616821,1742836241212,-500.0,0.00013373,2]
[356616822,1742836241223,-500.0,0.00013373,2]
[356616823,1742836241235,-500.0,0.0001339,2]
[356616824,1742836241245,-540.95497934,0.0001339,2]
[356616825,1742836241254,-1200.0,0.00013391,2]
[356616826,1742836241264,-5000.0,0.00013399,2]
[356616827,1742836241273,-45887.761293,0.00013399,2]
[356616836,1742836243682,-1000.0,0.00013399,2]
[356616837,1742836243789,-16439.1501964,0.00013399,2]
[356616838,1742836243802,-91244.55690305,0.00013399,2]
[356616839,1742836243815,-1022.12636978,0.00013399,2]
[356616840,1742836243843,-564.61260421,0.00013399,2]
[356616841,1742836243855,-30769.4297269,0.00013399,2]
[356616842,1742836243866,-499.9967325,0.00013399,2]
[356616851,1742836246678,-880.55619306,0.00013399,2]
[356616852,1742836246691,-5104.55944332,0.00013399,2]
[356616853,1742836246702,-258.91,0.00013399,2]
[356616854,1742836246714,-9998.6908919,0.00013399,2]
[356616855,1742836246785,-797.37923331,0.00013399,2]
[356616879,1742837053983,-150.0,0.00012264,2]
[356616909,1742837238273,-254.31201038,0.00012141,2]
[356617079,1742837432275,-5000.0,0.00012388,2]
[356617080,1742837432286,-252.60290087,0.00012548,2]
[356617081,1742837432295,-300.0,0.00012548,2]
[356617082,1742837432305,-24900.0,0.00012549,2]
[356617083,1742837432314,-150.0,0.00012969,2]
[356617084,1742837432324,-500.0,0.00013273,2]
[356617085,1742837432334,-500.0,0.00013273,2]
[356617086,1742837432343,-500.0,0.00013273,2]
[356617087,1742837432353,-500.0,0.00013273,2]
[356617088,1742837432362,-458.6305,0.00013291,2]
[356617089,1742837432372,-355.05720783,0.00013291,2]
[356617090,1742837432381,-1381.38117721,0.00013291,2]
[356617091,1742837432391,-600.0,0.00013291,2]
[356617092,1742837432400,-282656.94775466,0.00013299,2]
[356617093,1742837432412,-39343.05224534,0.00013299,2]
[356617094,1742837432424,-622.2,0.00013346,2]
[356617095,1742837432434,-735.61489673,0.00013401,2]
[356617096,1742837432443,-596.762034,0.00013699,2]
[356617097,1742837432594,-562.9287779,0.00013699,2]
[356617098,1742837432610,-500.0,0.00013699,2]
[356617099,1742837432619,-500.0,0.00013699,2]
[356617100,1742837432629,-500.0,0.00013699,2]
[356617101,1742837432639,-500.0,0.00013699,2]
[356617102,1742837432648,-500.0,0.00013699,2]
[356617103,1742837432657,-500.0,0.00013699,2]
[356617104,1742837432669,-500.0,0.00013699,2]
[356617105,1742837432679,-165.61813602,0.00013699,2]
[356617106,1742837432689,-500.0,0.00013699,2]
[356617107,1742837432699,-500.0,0.00013699,2]
[356617108,1742837432708,-500.0,0.00013699,2]
[356617109,1742837432718,-500.0,0.00013699,2]
[356617110,1742837432727,-500.0,0.00013699,2]
[356617111,1742837432737,-500.0,0.00013699,2]
[356617112,1742837432746,-500.0,0.00013699,2]
[356617113,1742837432755,-420.0,0.00013767,2]
[356617114,1742837432765,-629.0,0.000138,2]
[356617115,1742837432774,-541.0,0.0001393,2]
[356617116,1742837432784,-151.077,0.0001393,2]
[356617117,1742837432794,-1337.21771953,0.0001393,2]
[356617118,1742837432810,-925.78228047,0.0001393,2]
[356617119,1742837432820,-1915.0,0.0001393,2]
[356617120,1742837432829,-400.0,0.0001393,2]
[356617121,1742837432838,-500.0,0.00013955,2]
[356617122,1742837432849,-8513.46082152,0.00014,2]
[356617123,1742837432859,-889.4104914,0.00014247,2]
[356617124,1742837432868,-160.0,0.00014271,2]
[356617125,1742837432878,-160.0,0.00014271,2]
[356617126,1742837432888,-418.2974228,0.00014271,2]
[356617127,1742837432898,-834.65560377,0.00014271,2]
[356617128,1742837432907,-150.565823,0.000144,4]
[356617129,1742837432919,-150.565823,0.000147,4]
[356617130,1742837432928,-500.0,0.000147,4]
[356617131,1742837432937,-21841.75046663,0.00015,2]
[356617151,1742837437860,-500.0,0.00013288,2]
[356617152,1742837437870,-273.66848554,0.00013288,2]
[356617153,1742837437882,-5599.91151446,0.00015,2]
[356617154,1742837437927,-19651.70937003,0.00015,2]
[356617155,1742837437939,-1000.0,0.00015,2]
[356617161,1742837439998,-18242.62864888,0.00015,2]
[356617162,1742837440008,-1200.0,0.00015,2]
[356617163,1742837440017,-10279.92657031,0.00015,2]
[356617164,1742837440055,-4720.07342969,0.00015,2]
[356617165,1742837440064,-183.457,0.00015,2]
[356617166,1742837440074,-136.14436723,0.00015,2]
[356617167,1742837440085,-22.48730077,0.00015,2]
[356617168,1742837440094,-1302.93067938,0.00015,2]
[356617169,1742837440103,-660.56624774,0.00015,2]
[356617170,1742837440115,-324.97025148,0.00015,2]
[356617171,1742837440126,-925.11059178,0.00015,2]
[356617172,1742837440135,-1491.4785239,0.00015,2]
[356617173,1742837440147,-419.1685671,0.00015,2]
[356617174,1742837440156,-326.8354829,0.00015044,2]
[356617175,1742837440165,-587.0,0.00015105,2]
[356617176,1742837440176,-8513.46082151,0.00015107,2]
[356617177,1742837440186,-150.565823,0.00015155,3]
[356617178,1742837440195,-150.565823,0.00015212,2]
[356617179,1742837440204,-2200.0,0.00015648,2]
[356617180,1742837440214,-150.565823,0.00015732,3]
[356617181,1742837440223,-150.565823,0.0001584,2]
[356617182,1742837440232,-500.99999792,0.0001598,2]
[356617183,1742837440242,-150.0,0.00016,2]
[356617184,1742837440251,-12458.93820146,0.00016249,2]
[356617185,1742837440260,-160.0,0.00016249,2]
[356617186,1742837440270,-1910.647091,0.00016256,2]
[356617187,1742837440279,-1910.647091,0.00016256,2]
[356617188,1742837440289,-8513.46082151,0.00016314,2]
[356617189,1742837440298,-150.565823,0.0001632,5]
[356617190,1742837440307,-500.0,0.000164,7]
[356617191,1742837440316,-500.0,0.000164,7]
[356617192,1742837440325,-500.0,0.000164,7]
[356617193,1742837440334,-500.0,0.000164,7]
[356617194,1742837440343,-500.0,0.000164,7]
[356617195,1742837440352,-345.25,0.000164,7]
[356617196,1742837440361,-500.0,0.000164,2]
[356617197,1742837440370,-823.0,0.00016572,2]
[356617198,1742837440379,-150.565823,0.0001666,5]
[356617199,1742837440388,-150.565823,0.00016703,7]
[356617200,1742837440397,-300.0,0.000168,6]
[356617201,1742837440407,-151.0,0.000169,2]
[356617202,1742837440416,-541.0,0.0001693,2]
[356617203,1742837440426,-2263.0,0.0001693,2]
[356617204,1742837440436,-1915.0,0.0001693,2]
[356617205,1742837440446,-400.0,0.0001693,2]
[356617206,1742837440455,-150.565823,0.00017051,7]
[356617207,1742837440464,-640.27,0.000171,2]
[356617208,1742837440473,-151.0,0.000173,2]
[356617209,1742837440482,-191.06351483,0.0001739,2]
[356617210,1742837440491,-424.5,0.00017399,2]
[356617211,1742837440500,-2751.5962963,0.000174,7]
[356617212,1742837440509,-384.2623,0.000174,2]
[356617213,1742837440518,-151.0,0.000175,2]
[356617214,1742837440527,-500.0,0.000175,2]
[356617215,1742837440537,-8513.46082151,0.00017521,2]
[356617216,1742837440546,-1910.647091,0.00017521,2]
[356617217,1742837440555,-1910.647091,0.00017521,2]
[356617218,1742837440565,-2000.0,0.00017561,2]
[356617219,1742837440574,-477.63032361,0.00017561,2]
[356617220,1742837440583,-500.0,0.00017573,2]
[356617221,1742837440593,-500.0,0.00017573,2]
[356617222,1742837440603,-500.0,0.00017573,2]
[356617223,1742837440612,-500.0,0.00017573,2]
[356617224,1742837440621,-279.80381678,0.00017573,2]
[356617225,1742837440630,-500.0,0.00017573,2]
[356617226,1742837440639,-500.0,0.00017573,2]
[356617227,1742837440648,-500.0,0.00017573,2]
[356617228,1742837440657,-500.0,0.00017573,2]
[356617229,1742837440666,-500.0,0.00017573,2]
[356617230,1742837440676,-500.0,0.00017573,2]
[356617231,1742837440685,-500.0,0.00017573,2]
[356617232,1742837440694,-500.0,0.00017573,2]
[356617233,1742837440703,-485.61133249,0.00017573,2]
[356617234,1742837440712,-512.23480146,0.00017573,2]
[356617235,1742837440722,-500.0,0.00017573,2]
[356617236,1742837440731,-308.05023811,0.00017573,2]
[356617237,1742837440740,-500.0,0.00017573,2]
[356617238,1742837440749,-500.0,0.00017573,2]
[356617239,1742837440758,-500.0,0.00017573,2]
[356617240,1742837440767,-500.0,0.00017573,2]
[356617241,1742837440776,-500.0,0.00017573,2]
[356617242,1742837440785,-500.0,0.00017573,2]
[356617243,1742837440794,-500.0,0.00017573,2]
[356617244,1742837440807,-500.0,0.00017573,2]
[356617245,1742837440816,-529.52278594,0.00017573,2]
[356617246,1742837440826,-500.0,0.00017573,2]
[356617247,1742837440835,-205.60053372,0.00017573,2]
[356617248,1742837440844,-500.0,0.00017573,2]
[356617249,1742837440854,-500.0,0.00017573,2]
[356617250,1742837440863,-500.0,0.00017573,2]
[356617251,1742837440872,-500.0,0.00017573,2]
[356617252,1742837440881,-200.0,0.00017573,2]
[356617253,1742837440890,-15781.73885685,0.000176,2]
[356617254,1742837440902,-850.41025125,0.000176,2]
[356617264,1742837442827,-6803.56712156,0.00013199,2]
[356617265,1742837442888,-1769.32649208,0.00013199,2]
[356617266,1742837442944,-19690.64413876,0.00013199,2]
[356617269,1742837445831,-4841.98328235,0.00013199,2]
[356617270,1742837445890,-13328.94048968,0.00013199,2]
[356617271,1742837445902,-81641.85143852,0.00013199,2]
[356617282,1742838384084,194.274724,0.00010959,2]
[356617302,1742838632222,-1241.83197754,0.00012605,2]
[356617304,1742838638020,-562.17498306,0.00012605,2]
[356617305,1742838638031,-6092.5152425,0.00012619,2]
[356617306,1742838638040,-161.54867577,0.00013,2]
[356617307,1742838638050,-205.26029009,0.00013198,2]
[356617308,1742838638059,-300.0,0.00013198,2]
[356617309,1742838638070,-10111.90421367,0.00013199,2]
[356617310,1742838638080,-9633.6988356,0.00013327,2]
[356617311,1742838638089,-500.0,0.00013673,2]
[356617312,1742838638099,-500.0,0.00013673,2]
[356617313,1742838638109,-500.0,0.00013697,2]
[356617314,1742838638118,-201.13125579,0.00013697,2]
[356617315,1742838638127,-502.54614519,0.00013698,2]
[356617316,1742838638137,-318.64953048,0.00013698,2]
[356617317,1742838638146,-500.0,0.00013698,2]
[356617318,1742838638156,-207.05226661,0.00013698,2]
[356617319,1742838638165,-409.63618709,0.00013698,2]
[356617320,1742838638179,-510.16739538,0.00013698,2]
[356617321,1742838638188,-500.0,0.00013698,2]
[356617322,1742838638198,-500.0,0.00013698,2]
[356617323,1742838638207,-500.0,0.00013698,2]
[356617324,1742838638218,-500.0,0.00013698,2]
[356617325,1742838638227,-545.05759372,0.00013698,2]
[356617326,1742838638237,-504.66532065,0.00013698,2]
[356617327,1742838638247,-500.28652761,0.00013698,2]
[356617328,1742838638257,-510.17109925,0.00013698,2]
[356617329,1742838638268,-500.0,0.00013698,2]
[356617330,1742838638277,-560.14793316,0.00013698,2]
[356617331,1742838638287,-500.0,0.00013698,2]
[356617332,1742838638297,-502.80754085,0.00013698,2]
[356617333,1742838638306,-500.0,0.00013698,2]
[356617334,1742838638316,-500.0,0.00013698,2]
[356617335,1742838638326,-500.0,0.00013698,2]
[356617336,1742838638335,-500.0,0.00013698,2]
[356617337,1742838638345,-223.02644875,0.00013698,2]
[356617338,1742838638375,-276.97355125,0.00013698,2]
[356617339,1742838638384,-248.87728709,0.00013698,2]
[356617340,1742838638393,-500.0,0.00013698,2]
[356617341,1742838638402,-500.0,0.00013698,2]
[356617342,1742838638411,-511.51362815,0.00013698,2]
[356617343,1742838638421,-508.42046666,0.00013698,2]
[356617344,1742838638430,-500.0,0.00013698,2]
[356617345,1742838638440,-500.0,0.00013698,2]
[356617346,1742838638449,-500.0,0.00013698,2]
[356617347,1742838638459,-500.0,0.00013698,2]
[356617348,1742838638468,-510.82067739,0.00013698,2]
[356617349,1742838638478,-500.0,0.00013698,2]
[356617350,1742838638487,-227.36436357,0.00013698,2]
[356617351,1742838638496,-500.0,0.00013698,2]
[356617352,1742838638506,-82.63701829,0.00013698,2]
[356617353,1742838638519,-417.36298171,0.00013698,2]
[356617354,1742838638528,-852.04379333,0.00013698,2]
[356617355,1742838638539,-588.51620667,0.00013698,2]
[356617356,1742838638550,-325.16393236,0.00013698,2]
[356617357,1742838638563,-174.83606764,0.00013698,2]
[356617358,1742838638573,-395.96135863,0.00013698,2]
[356617359,1742838638584,-120.81379352,0.00013698,2]
[356617360,1742838638593,-503.76350021,0.00013698,2]
[356617361,1742838638602,-500.0,0.00013698,2]
[356617362,1742838638611,-500.0,0.00013698,2]
[356617363,1742838638621,-500.0,0.00013698,2]
[356617364,1742838638630,-110.54516897,0.00013698,2]
[356617379,1742838640298,-389.45483103,0.00013698,2]
[356617380,1742838640307,-500.0,0.00013698,2]
[356617381,1742838640317,-500.0,0.00013698,2]
[356617382,1742838640326,-500.0,0.00013698,2]
[356617383,1742838640336,-547.66993966,0.00013698,2]
[356617384,1742838640346,-500.0,0.00013698,2]
[356617385,1742838640355,-641.5374551,0.00013698,2]
[356617386,1742838640365,-500.0,0.00013698,2]
[356617387,1742838640374,-500.0,0.00013698,2]
[356617388,1742838640383,-500.0,0.00013698,2]
[356617389,1742838640393,-505.51463576,0.00013698,2]
[356617390,1742838640402,-500.0,0.00013698,2]
[356617391,1742838640411,-508.74492912,0.00013698,2]
[356617392,1742838640420,-515.66256012,0.00013698,2]
[356617393,1742838640432,-518.69820808,0.00013698,2]
[356617394,1742838640441,-500.0,0.00013698,2]
[356617395,1742838640451,-500.0,0.00013698,2]
[356617396,1742838640460,-500.0,0.00013698,2]
[356617397,1742838640470,-500.0,0.00013698,2]
[356617398,1742838640479,-512.0819135,0.00013698,2]
[356617399,1742838640489,-500.0,0.00013698,2]
[356617400,1742838640499,-500.0,0.00013698,2]
[356617401,1742838640508,-500.0,0.00013698,2]
[356617402,1742838640517,-184.3339612,0.00013698,2]
[356617403,1742838640527,-500.0,0.00013698,2]
[356617404,1742838640538,-500.0,0.00013698,2]
[356617405,1742838640549,-500.0,0.00013698,2]
[356617406,1742838640558,-500.0,0.00013698,2]
[356617407,1742838640567,-537.21452354,0.00013698,2]
[356617408,1742838640577,-500.0,0.00013698,2]
[356617409,1742838640587,-500.0,0.00013698,2]
[356617410,1742838640596,-589.30065786,0.00013698,2]
[356617411,1742838640605,-500.0,0.00013698,2]
[356617412,1742838640614,-509.4558341,0.00013698,2]
[356617413,1742838640624,-500.0,0.00013698,2]
[356617414,1742838640633,-500.0,0.00013698,2]
[356617415,1742838640643,-500.0,0.00013698,2]
[356617416,1742838640652,-500.0,0.00013698,2]
[356617417,1742838640661,-515.96713905,0.00013698,2]
[356617418,1742838640671,-509.20994301,0.00013698,2]
[356617419,1742838640682,-501.21073548,0.00013698,2]
[356617420,1742838640691,-500.0,0.00013698,2]
[356617421,1742838640700,-500.0,0.00013698,2]
[356617422,1742838640709,-500.0,0.00013698,2]
[356617423,1742838640719,-572.42339014,0.00013698,2]
[356617424,1742838640728,-511.89207049,0.00013698,2]
[356617425,1742838640737,-500.0,0.00013698,2]
[356617426,1742838640747,-500.0,0.00013698,2]
[356617427,1742838640756,-500.0,0.00013698,2]
[356617428,1742838640765,-500.0,0.00013698,2]
[356617429,1742838640775,-504.98908256,0.00013698,2]
[356617430,1742838640784,-500.0,0.00013698,2]
[356617431,1742838640793,-500.0,0.00013698,2]
[356617432,1742838640802,-500.0,0.00013698,2]
[356617433,1742838640812,-500.0,0.00013698,2]
[356617434,1742838640821,-500.0,0.00013698,2]
[356617435,1742838640830,-500.0,0.00013698,2]
[356617436,1742838640839,-512.89040429,0.00013698,2]
[356617437,1742838640848,-500.0,0.00013698,2]
[356617438,1742838640857,-500.0,0.00013698,2]
[356617439,1742838640866,-500.0,0.00013698,2]
[356617440,1742838640876,-332.01556809,0.00013698,2]
[356617441,1742838640898,-167.98443191,0.00013698,2]
[356617442,1742838640907,-510.80116168,0.00013698,2]
[356617443,1742838640917,-146.53948444,0.00013698,2]
[356617465,1742838643499,-353.46051556,0.00013698,2]
[356617466,1742838643508,-500.0,0.00013698,2]
[356617467,1742838643518,-500.0,0.00013698,2]
[356617468,1742838643527,-500.0,0.00013698,2]
[356617469,1742838643536,-500.0,0.00013698,2]
[356617470,1742838643545,-500.0,0.00013698,2]
[356617471,1742838643555,-500.0,0.00013698,2]
[356617472,1742838643564,-500.0,0.00013698,2]
[356617473,1742838643573,-500.0,0.00013698,2]
[356617475,1742838643582,-513.98370937,0.00013698,2]
[356617477,1742838643591,-522.782498,0.00013698,2]
[356617478,1742838643600,-500.0,0.00013698,2]
[356617480,1742838643609,-500.0,0.00013698,2]
[356617481,1742838643618,-514.9984423,0.00013698,2]
[356617482,1742838643631,-509.52999799,0.00013698,2]
[356617483,1742838643651,-508.46729139,0.00013698,2]
[356617484,1742838643662,-581.88795399,0.00013698,2]
[356617485,1742838643671,-500.0,0.00013698,2]
[356617486,1742838643680,-54.46744946,0.00013698,2]
[356617487,1742838643693,-450.43234592,0.00013698,2]
[356617488,1742838643702,-89.00765407,0.00013698,2]
[356617494,1742838645975,-348.7658666,0.00013698,2]
[356617495,1742838646092,-62.22647933,0.00013698,2]
[356617496,1742838646101,-794.44,0.00013698,2]
[356617497,1742838646110,-26.94410593,0.00013698,2]
[356617498,1742838646122,-473.05589407,0.00013698,2]
[356617499,1742838646131,-259.51395793,0.00013698,2]
[356617500,1742838646140,-500.0,0.00013698,2]
[356617501,1742838646150,-500.0,0.00013698,2]
[356617502,1742838646159,-500.0,0.00013698,2]
[356617503,1742838646168,-767.89631093,0.00013698,2]
[356617511,1742839646136,213.716235,0.00010959,2]
[356617546,1742839832428,-3867.1680563,0.00012814,2]
[356617547,1742839832439,-190.44801468,0.00013452,2]
[356617548,1742839832448,-4993.63780057,0.00013498,2]
[356617549,1742839832458,-490.79187905,0.00013597,2]
[356617550,1742839832469,-37280.87647882,0.00013598,2]
[356617551,1742839832478,-500.0,0.00013673,2]
[356617552,1742839832488,-500.0,0.00013673,2]
[356617553,1742839832497,-156.587,0.0001369,2]
[356617554,1742839832507,-500.0,0.00013698,2]
[356617555,1742839832517,-500.0,0.00013698,2]
[356617556,1742839832526,-500.0,0.00013698,2]
[356617557,1742839832535,-500.0,0.00013698,2]
[356617558,1742839832545,-500.0,0.00013698,2]
[356617559,1742839832555,-500.0,0.00013698,2]
[356617560,1742839832568,-500.0,0.00013698,2]
[356617561,1742839832577,-500.0,0.00013698,2]
[356617562,1742839832587,-500.0,0.00013698,2]
[356617563,1742839832597,-500.0,0.00013698,2]
[356617564,1742839832607,-500.0,0.00013698,2]
[356617565,1742839832617,-270.2539489,0.00013698,2]
[356617566,1742839832627,-500.0,0.00013698,2]
[356617567,1742839832637,-203.87780154,0.00013698,2]
[356617568,1742839832650,-500.0,0.00013698,2]
[356617569,1742839832660,-500.0,0.00013698,2]
[356617570,1742839832670,-500.0,0.00013698,2]
[356617571,1742839832680,-500.0,0.00013698,2]
[356617572,1742839832691,-500.0,0.00013698,2]
[356617573,1742839832701,-500.0,0.00013698,2]
[356617574,1742839832710,-217.14072327,0.00013698,2]
[356617575,1742839832724,-282.85927673,0.00013698,2]
[356617576,1742839832734,-549.88219195,0.00013698,2]
[356617577,1742839832744,-511.29979813,0.00013698,2]
[356617578,1742839832754,-500.0,0.00013698,2]
[356617579,1742839832764,-346.1685807,0.00013698,2]
[356617580,1742839832778,-156.6236577,0.00013698,2]
[356617581,1742839832788,-500.0,0.00013698,2]
[356617582,1742839832798,-600.22411486,0.00013698,2]
[356617583,1742839832807,-500.0,0.00013698,2]
[356617584,1742839832817,-429.30061405,0.00013698,2]
[356617585,1742839832827,-503.02245921,0.00013698,2]
[356617586,1742839832837,-510.22953429,0.00013698,2]
[356617587,1742839832847,-379.93477049,0.00013698,2]
[356617588,1742839832865,-120.06522951,0.00013698,2]
[356617589,1742839832875,-357.07499355,0.00013698,2]
[356617590,1742839832886,-142.92500645,0.00013698,2]
[356617591,1742839832896,-500.0,0.00013698,2]
[356617592,1742839832905,-90.05186795,0.00013698,2]
[356617607,1742839840444,-535.49687706,0.00013698,2]
[356617608,1742839840454,-130.3201751,0.00013698,2]
[356617614,1742839843371,-51.30756824,0.00013698,2]